bitfinex-derivatives/quotes_SOLF0:USTF0_20260203
["timestamp","ask_amount","ask_price","bid_price","bid_amount"]
[1770131561591,41.08203379,100.97,100.89,35.62465357]
[1770131561992,50.00313379,100.97,100.9,8.9272]
[1770131562291,44.03600483,100.97,100.9,44.55185357]
[1770131562594,179.82793379,100.99,100.91,44.55095357]
[1770131562791,35.11490483,100.98,100.91,35.62465357]
[1770131563096,35.11490483,100.95,100.88,35.62465357]
[1770131563289,41.08203379,100.95,100.88,35.62465357]
[1770131563891,50.00493379,100.95,100.88,44.55335357]
[1770131564085,35.11490483,100.95,100.88,35.62465357]
[1770131564286,41.08203379,100.97,100.89,35.62465357]
[1770131564488,8.9221,100.96,100.89,35.62465357]
[1770131565290,8.9221,100.96,100.9,8.9272]
[1770131565491,8.9221,100.96,100.89,35.62465357]
[1770131566297,8.9221,100.96,100.89,44.55275357]
[1770131567396,35.11490483,100.97,100.9,44.55185357]
[1770131567598,8.9209,100.98,100.9,35.62465357]
[1770131567793,35.11490483,100.96,100.87,138.9092]
[1770131567992,35.11490483,100.96,100.84,138.945]
[1770131567993,41.08203379,100.91,100.84,35.62465357]
[1770131568198,203.14203379,100.91,100.84,35.62465357]
[1770131568403,41.11083629,100.9,100.81,35.62465357]
[1770131568698,41.11083629,100.9,100.81,174.61755357]
[1770131568894,50.03813629,100.9,100.82,44.55885357]
[1770131569398,206.20220483,100.9,100.82,35.62465357]
[1770131570289,8.9283,100.89,100.82,35.62465357]
[1770131570494,172.3840303,100.89,100.82,35.62465357]
[1770131570695,33.4988303,100.88,100.79,171.88328157]
[1770131570895,205.0884303,100.88,100.79,171.88328157]
[1770131571097,33.4988303,100.87,100.8,32.87118157]
[1770131571297,33.4988303,100.86,100.78,8.9372]
[1770131571500,8.932,100.85,100.78,8.9372]
[1770131571700,39.49476176,100.86,100.78,32.87118157]
[1770131572000,178.41976176,100.86,100.78,41.80898157]
[1770131572195,33.4988303,100.85,100.78,32.87118157]
[1770131572399,162.74,100.84,100.78,32.87118157]
[1770131572601,33.4988303,100.85,100.78,171.90458157]
[1770131572797,8.9307,100.87,100.79,171.88738157]
[1770131573000,341.27246176,100.88,100.79,32.87118157]
[1770131573196,196.3788303,100.88,100.8,171.91021808]
[1770131573502,33.4988303,100.88,100.81,171.89541808]
[1770131573697,33.4988303,100.88,100.81,32.90391808]
[1770131573897,178.39166176,100.88,100.78,171.93731808]
[1770131574097,5.99593146,100.88,100.8,32.90391808]
[1770131574295,33.73197601,100.9,100.82,41.83821808]
[1770131574698,172.54697601,100.94,100.84,171.85191808]
[1770131574999,172.56057601,100.93,100.84,32.90391808]
[1770131575895,39.72790747,100.96,100.86,32.90391808]
[1770131576101,33.73197601,100.96,100.89,32.90391808]
[1770131576300,42.65417601,100.96,100.89,32.90391808]
[1770131577002,33.73197601,100.96,100.89,32.90391808]
[1770131577402,138.7659,100.98,100.9,41.83101808]
[1770131577593,196.77197601,100.99,100.91,32.90391808]
[1770131577798,172.44237601,101.02,100.93,32.90391808]
[1770131577998,138.7181,101.01,100.93,32.90391808]
[1770131578703,172.49427601,100.98,100.9,32.90391808]
[1770131579104,33.73197601,100.98,100.9,41.83041808]
[1770131580193,8.9212,100.97,100.9,41.83041808]
[1770131580593,33.73197601,100.98,100.91,32.90391808]
[1770131580794,172.49247601,100.98,100.88,171.79831808]
[1770131581003,172.49247601,100.98,100.89,32.90391808]
[1770131581401,178.44600747,101.01,100.92,32.90391808]
[1770131581598,138.7357,101.0,100.92,32.90391808]
[1770131581801,33.73197601,101.0,100.92,32.90391808]
[1770131582506,8.9195,100.99,100.92,32.90391808]
[1770131582707,33.73197601,100.98,100.9,395.4]
[1770131583106,33.73197601,100.98,100.89,171.78511808]
[1770131583402,8.9212,100.97,100.89,32.90391808]
[1770131583608,33.73197601,100.97,100.89,32.90391808]
[1770131583804,172.55997601,100.93,100.83,171.86851808]
[1770131583997,172.59337601,100.91,100.83,32.90391808]
[1770131584196,33.73197601,100.88,100.8,32.90391808]
[1770131584398,33.73197601,100.88,100.8,171.90681808]
[1770131584602,33.73197601,100.88,100.81,171.89691808]
[1770131584803,33.73197601,100.88,100.82,8.9343]
[1770131585297,33.73197601,100.91,100.84,32.90391808]
[1770131585705,33.73197601,100.9,100.82,395.36]
[1770131585997,33.73197601,100.9,100.82,567.24241808]
[1770131586302,33.73197601,100.9,100.85,8.9316]
[1770131586503,33.73197601,100.9,100.83,171.86751808]
[1770131587007,42.65737601,100.93,100.84,171.85031808]
[1770131587606,33.73197601,100.91,100.84,8.9318]
[1770131587906,33.73197601,100.91,100.82,395.36]
[1770131588105,8.9286,100.89,100.82,395.36]
[1770131588309,39.72790747,100.88,100.81,32.90391808]
[1770131588505,5.99593146,100.9,100.81,32.90391808]
[1770131588707,33.73197601,100.91,100.82,171.87911808]
[1770131589010,33.73197601,100.91,100.82,32.90391808]
[1770131589308,42.65927601,100.9,100.83,8.9332]
[1770131589506,33.73197601,100.9,100.83,8.9332]
[1770131589707,8.9281,100.89,100.82,41.83781808]
[1770131589910,8.9281,100.89,100.82,32.90391808]
[1770131590504,33.73197601,100.9,100.82,32.90391808]
[1770131591311,33.73197601,100.9,100.82,171.88181808]
[1770131591611,33.73197601,100.93,100.85,171.84061808]
[1770131591800,42.65667601,100.93,100.85,180.77151808]
[1770131592002,42.65667601,100.93,100.85,171.84061808]
[1770131592410,39.72790747,100.93,100.84,171.85351808]
[1770131592614,33.73197601,100.92,100.84,32.90391808]
[1770131592812,33.73197601,100.92,100.85,171.84071808]
[1770131593011,33.73197601,100.92,100.85,32.90391808]
[1770131593207,33.73197601,100.92,100.85,171.83871808]
[1770131593914,39.72790747,100.95,100.86,171.82591808]
[1770131594210,33.73197601,100.94,100.86,32.90391808]
[1770131594515,8.9255,100.92,100.85,8.9309]
[1770131594704,33.73197601,100.92,100.85,8.9309]
[1770131594908,33.73197601,100.92,100.83,32.90391808]
[1770131595110,33.73197601,100.91,100.84,8.9324]
[1770131595313,33.73197601,100.91,100.83,171.86881808]
[1770131595509,33.73197601,100.91,100.86,8.9303]
[1770131595710,33.73197601,100.94,100.86,171.82741808]
[1770131596013,33.73197601,100.94,100.86,32.90391808]
[1770131596416,42.65577601,100.94,100.87,8.9298]
[1770131597211,8.9247,100.93,100.87,8.9298]
[1770131597412,39.72790747,100.93,100.85,8.9308]
[1770131597712,33.73197601,100.92,100.85,8.9308]
[1770131598315,33.73197601,100.91,100.84,8.9325]
[1770131598515,33.73197601,100.89,100.8,171.89761808]
[1770131598719,5.99593146,100.87,100.79,139.0073]
[1770131598923,48.65780747,100.87,100.8,8.9361]
[1770131599218,39.72790747,100.87,100.79,171.92421808]
[1770131599810,48.65790747,100.87,100.79,32.90391808]
[1770131600015,39.72790747,100.87,100.79,32.90391808]
[1770131601216,8.9309,100.86,100.79,32.90391808]
[1770131601720,8.9309,100.86,100.79,41.84091808]
[1770131602727,172.02280094,100.86,100.77,33.49578444]
[1770131603211,138.9395,100.85,100.77,33.49578444]
[1770131603414,172.03060094,100.85,100.77,33.49578444]
[1770131604218,8.9335,100.83,100.77,42.43448444]
[1770131604614,8.9335,100.83,100.77,8.9387]
[1770131604809,33.09110094,100.82,100.75,33.49578444]
[1770131605013,178.0265324,100.85,100.76,33.49578444]
[1770131605314,8.9333,100.84,100.77,33.49578444]
[1770131605517,33.09110094,100.85,100.77,33.49578444]
[1770131606321,33.09110094,100.84,100.77,33.49578444]
[1770131606909,42.02400094,100.84,100.75,534.695]
[1770131607219,42.02400094,100.84,100.75,568.19078444]
[1770131607415,42.02400094,100.84,100.76,33.49578444]
[1770131607621,33.09110094,100.8,100.72,172.60158444]
[1770131608521,33.09110094,100.8,100.72,33.49578444]
[1770131609015,33.09110094,100.8,100.72,42.43888444]
[1770131609717,8.9371,100.79,100.72,33.49578444]
[1770131610022,39.0870324,100.77,100.69,33.49578444]
[1770131610320,8.9397,100.76,100.69,33.49578444]
[1770131610816,42.03080094,100.76,100.69,33.49578444]
[1770131611314,172.17100094,100.75,100.66,429.19578444]
[1770131611517,39.0870324,100.75,100.67,33.49578444]
[1770131611821,33.09110094,100.75,100.67,172.68048444]
[1770131612216,33.09110094,100.75,100.69,8.9458]
[1770131612513,33.09110094,100.78,100.69,33.49578444]
[1770131612918,8.9389,100.77,100.7,8.9449]
[1770131613122,33.09110094,100.78,100.71,33.49578444]
[1770131613319,33.09110094,100.77,100.65,33.49578444]
[1770131613520,42.03270094,100.74,100.66,42.44418444]
[1770131613722,145.07523146,100.75,100.67,33.49578444]
[1770131613723,5.99593146,100.75,100.67,33.49578444]
[1770131613924,48.0276324,100.75,100.68,8.9466]
[1770131614227,42.03170094,100.75,100.68,42.44238444]
[1770131614619,172.18290094,100.74,100.65,33.49578444]
[1770131614814,33.09110094,100.73,100.65,33.49578444]
[1770131615323,33.09110094,100.73,100.66,33.49578444]
[1770131615620,207.07473146,100.75,100.66,33.49578444]
[1770131615823,39.0870324,100.69,100.63,2.77948636]
[1770131616014,172.26740094,100.68,100.63,2.77948636]
[1770131616220,33.09110094,100.68,100.63,2.77948636]
[1770131616621,172.26600094,100.68,100.63,2.77948636]
[1770131616823,42.03800094,100.68,100.63,2.77948636]
[1770131617926,164.98,100.69,100.63,2.77948636]
[1770131618320,8.9469,100.68,100.63,2.77948636]
[1770131618626,39.0870324,100.67,100.58,172.80398444]
[1770131618825,39.0870324,100.67,100.59,33.49578444]
[1770131619028,33.09110094,100.67,100.6,33.49578444]
[1770131619219,33.09110094,100.67,100.6,42.44948444]
[1770131619817,42.03890094,100.67,100.6,42.44948444]
[1770131620228,337.99750094,100.7,100.62,33.49578444]
[1770131620424,207.79680094,100.7,100.62,33.49578444]
[1770131620826,139.16,100.69,100.62,33.49578444]
[1770131621125,172.25110094,100.69,100.62,33.49578444]
[1770131621522,172.25110094,100.69,100.59,139.2969]
[1770131621523,8.9479,100.67,100.6,8.9532]
[1770131621719,172.26490094,100.68,100.6,8.9532]
[1770131621720,33.09110094,100.68,100.6,42.44898444]
[1770131622226,33.09110094,100.68,100.6,33.49578444]
[1770131622727,8.9478,100.67,100.6,42.44938444]
[1770131623630,39.0870324,100.69,100.61,33.49578444]
[1770131623824,33.09110094,100.69,100.61,33.49578444]
[1770131624025,42.03710094,100.69,100.62,8.952]
[1770131624219,172.20910094,100.72,100.63,33.49578444]
[1770131624523,33.09110094,100.71,100.63,33.49578444]
[1770131624719,172.22260094,100.71,100.63,33.49578444]
[1770131624918,172.23620094,100.7,100.63,33.49578444]
[1770131625123,8.9459,100.69,100.63,33.49578444]
[1770131625320,199.81110094,100.68,100.6,33.49578444]
[1770131625725,33.09110094,100.66,100.57,172.80828444]
[1770131625929,33.09110094,100.66,100.58,172.80638444]
[1770131626827,42.03970094,100.66,100.59,8.9547]
[1770131627531,8.9496,100.65,100.58,33.49578444]
[1770131627736,33.09110094,100.66,100.58,33.49578444]
[1770131627936,33.09110094,100.63,100.57,8.9564]
[1770131628528,33.09110094,100.63,100.55,33.49578444]
[1770131628937,39.0870324,100.63,100.55,33.49578444]
[1770131629229,42.04230094,100.63,100.55,33.49578444]
[1770131629428,39.0870324,100.61,100.52,172.88248444]
[1770131629634,39.0870324,100.61,100.54,8.9592]
[1770131630332,33.09110094,100.6,100.53,8.9601]
[1770131630630,39.12237657,100.6,100.53,8.9601]
[1770131630934,30.59904004,100.59,100.5,169.59271537]
[1770131631536,30.59904004,100.59,100.51,169.59041537]
[1770131631934,30.59904004,100.59,100.51,30.18391537]
[1770131632231,30.59904004,100.61,100.52,169.57771537]
[1770131632428,30.59904004,100.6,100.52,169.57611537]
[1770131632629,39.55304004,100.6,100.53,8.9601]
[1770131632826,39.55304004,100.6,100.5,139.4196]
[1770131632827,28.12854198,100.59,100.5,139.4196]
[1770131633030,28.12854198,100.59,100.5,169.53397476]
[1770131633936,28.12854198,100.62,100.56,8.9574]
[1770131634126,28.12854198,100.62,100.55,30.11437476]
[1770131634533,28.12854198,100.62,100.52,39.07527476]
[1770131634534,37.08334198,100.59,100.52,39.07527476]
[1770131634730,28.12854198,100.59,100.52,30.11437476]
[1770131635438,28.12854198,100.59,100.53,8.96]
[1770131636138,37.08334198,100.59,100.52,30.11437476]
[1770131636534,28.12854198,100.59,100.52,30.11437476]
[1770131637039,28.12854198,100.59,100.52,39.07527476]
[1770131637339,28.12854198,100.59,100.52,30.11437476]
[1770131638237,34.15981761,100.59,100.5,30.11437476]
[1770131638432,28.12854198,100.58,100.5,30.11437476]
[1770131639039,8.9566,100.57,100.5,39.07717476]
[1770131639340,28.12854198,100.58,100.5,169.53607476]
[1770131639539,28.12854198,100.58,100.51,30.11437476]
[1770131639938,8.9546,100.6,100.53,39.07437476]
[1770131640240,28.12854198,100.58,100.51,396.62]
[1770131640441,34.15981761,100.58,100.5,30.11437476]
[1770131640632,28.12854198,100.57,100.5,39.07697476]
[1770131640845,34.15981761,100.56,100.47,169.56447476]
[1770131641340,37.08804198,100.54,100.47,30.11437476]
[1770131641941,28.12854198,100.54,100.48,8.9642]
[1770131642741,34.15981761,100.56,100.49,8.9636]
[1770131643137,28.12854198,100.55,100.47,30.11437476]
[1770131643936,28.12854198,100.55,100.48,39.07887476]
[1770131644637,28.12854198,100.55,100.46,30.11437476]
[1770131644842,28.12854198,100.55,100.47,30.11437476]
[1770131645537,145.37007563,100.56,100.48,8.9637]
[1770131645538,37.08794198,100.54,100.48,8.9637]
[1770131645738,28.12854198,100.54,100.48,8.9637]
[1770131646138,43.11921761,100.54,100.48,8.9637]
[1770131646338,28.12854198,100.53,100.48,8.9637]
[1770131646938,28.12854198,100.52,100.45,30.11437476]
[1770131647134,34.15981761,100.52,100.45,30.11437476]
[1770131647335,34.15981761,100.52,100.43,139.5087]
[1770131647838,28.12854198,100.51,100.42,169.63557476]
[1770131648041,28.12854198,100.51,100.42,169.64697476]
[1770131648243,28.12854198,100.51,100.43,30.11437476]
[1770131648542,28.12854198,100.51,100.43,169.63017476]
[1770131648843,28.12854198,100.51,100.44,30.11437476]
[1770131649240,28.12854198,100.5,100.41,172.42896112]
[1770131649443,34.15981761,100.5,100.41,172.42896112]
[1770131650143,8.9647,100.48,100.41,32.89386112]
[1770131650341,28.12854198,100.52,100.45,30.11437476]
[1770131650845,195.56854198,100.55,100.47,30.11437476]
[1770131651034,8.9601,100.53,100.47,39.07897476]
[1770131651338,28.12854198,100.53,100.44,30.11437476]
[1770131651539,37.09064198,100.51,100.44,39.08167476]
[1770131651739,37.09064198,100.51,100.44,30.11437476]
[1770131651942,28.12854198,100.51,100.44,169.61847476]
[1770131652245,28.12854198,100.51,100.45,5.0872]
[1770131652840,37.09044198,100.51,100.45,5.0872]
[1770131653141,28.12854198,100.51,100.44,30.11437476]
[1770131653343,37.09054198,100.51,100.44,30.11437476]
[1770131653547,28.12854198,100.55,100.47,30.11437476]
[1770131653933,139.2838,100.6,100.52,39.07527476]
[1770131654137,167.43204198,100.59,100.49,30.11437476]
[1770131654536,8.957,100.57,100.5,30.11437476]
[1770131655138,8.9557,100.58,100.5,30.11437476]
[1770131655339,8.9557,100.58,100.5,169.53567476]
[1770131655646,8.9547,100.6,100.53,30.11437476]
[1770131655945,340.84101761,100.64,100.55,30.11437476]
[1770131656346,28.12854198,100.63,100.55,30.11437476]
[1770131657150,28.12854198,100.63,100.56,169.45127476]
[1770131657442,28.12854198,100.65,100.57,169.43737476]
[1770131657650,6.03127563,100.66,100.58,30.11437476]
[1770131657651,167.33014198,100.66,100.58,30.11437476]
[1770131658038,173.36141761,100.66,100.58,30.11437476]
[1770131658347,28.12854198,100.63,100.56,8.9569]
[1770131659448,37.07984198,100.63,100.56,8.9569]
[1770131660247,37.08084198,100.62,100.55,30.11437476]
[1770131660447,28.12854198,100.62,100.55,30.11437476]
[1770131661546,28.12854198,100.62,100.56,8.9573]
[1770131661850,396.95790079,100.65,100.56,35.53043652]
[1770131662246,28.11660079,100.64,100.56,35.53043652]
[1770131662641,8.9513,100.63,100.56,35.53043652]
[1770131662951,28.11660079,100.64,100.56,35.53043652]
[1770131663153,37.06700079,100.64,100.56,35.53043652]
[1770131663753,8.9513,100.63,100.56,35.53043652]
[1770131665047,8.9513,100.63,100.5,139.4114]
[1770131665048,28.11660079,100.59,100.5,139.4114]
[1770131665250,167.45640079,100.56,100.46,166.04963652]
[1770131665450,34.14787642,100.55,100.46,166.04963652]
[1770131665656,37.07590079,100.54,100.46,166.04963652]
[1770131665955,28.11660079,100.56,100.47,166.03493652]
[1770131666355,28.11660079,100.56,100.48,166.02253652]
[1770131666651,28.11660079,100.55,100.46,423.35313652]
[1770131666844,167.46960079,100.55,100.46,423.35313652]
[1770131667048,173.51497642,100.54,100.46,26.57313652]
[1770131667454,182.47507642,100.54,100.46,35.53943652]
[1770131667657,173.51497642,100.54,100.46,35.53943652]
[1770131668053,34.14787642,100.54,100.46,35.53943652]
[1770131668257,8.9605,100.53,100.46,35.53943652]
[1770131668452,6.03127563,100.56,100.47,26.57313652]
[1770131668657,335.22560079,100.57,100.47,166.03563652]
[1770131669158,195.89660079,100.57,100.49,26.57313652]
[1770131669357,195.89660079,100.57,100.49,166.00743652]
[1770131669358,28.11660079,100.57,100.49,166.00743652]
[1770131669660,335.12070079,100.6,100.51,26.57313652]
[1770131670051,195.83660079,100.6,100.51,165.98033652]
[1770131670359,8.9548,100.59,100.52,8.961]
[1770131670554,28.11660079,100.6,100.53,26.57313652]
[1770131670760,37.07050079,100.6,100.53,26.57313652]
[1770131670948,167.37410079,100.62,100.53,26.57313652]
[1770131671153,173.40537642,100.62,100.53,26.57313652]
[1770131671357,8.954,100.6,100.53,35.53313652]
[1770131672152,8.954,100.6,100.54,8.9592]
[1770131672457,167.42790079,100.58,100.5,26.57313652]
[1770131672655,28.11660079,100.58,100.5,26.57313652]
[1770131672853,28.11660079,100.58,100.5,35.53583652]
[1770131673256,173.45917642,100.58,100.5,26.57313652]
[1770131673861,182.41567642,100.58,100.5,35.53563652]
[1770131674163,28.11660079,100.57,100.5,35.53563652]
[1770131674462,167.45610079,100.56,100.48,8.9637]
[1770131674663,28.11660079,100.56,100.48,26.57313652]
[1770131675655,8.9591,100.55,100.48,35.53763652]
[1770131675859,28.11660079,100.56,100.48,26.57313652]
[1770131676361,28.11660079,100.56,100.48,166.02153652]
[1770131676555,28.11660079,100.56,100.49,8.9637]
[1770131677162,28.11660079,100.56,100.5,8.9626]
[1770131677468,37.07410079,100.56,100.49,26.57313652]
[1770131677665,28.11660079,100.56,100.49,26.57313652]
[1770131677867,28.11660079,100.54,100.46,166.04613652]
[1770131678168,28.11660079,100.54,100.47,8.9654]
[1770131679358,37.07620079,100.54,100.47,8.9654]
[1770131679556,28.11660079,100.53,100.47,8.9654]
[1770131679759,28.11660079,100.53,100.46,35.53943652]
[1770131679960,37.07790079,100.52,100.44,396.86]
[1770131680156,34.14787642,100.51,100.43,26.57313652]
[1770131680563,34.14787642,100.51,100.44,8.9675]
[1770131681061,34.14787642,100.51,100.45,8.9669]
[1770131681264,28.11660079,100.51,100.45,8.9669]
[1770131681460,8.9601,100.53,100.45,26.57313652]
[1770131681765,196.23660079,100.54,100.46,139.4773]
[1770131681960,196.23660079,100.54,100.46,26.57313652]
[1770131682165,28.11660079,100.53,100.46,8.9663]
[1770131682561,28.11660079,100.52,100.45,26.57313652]
[1770131682766,28.11660079,100.52,100.45,8.9672]
[1770131683064,28.11660079,100.52,100.44,139.5007]
[1770131683564,28.11660079,100.52,100.44,166.07383652]
[1770131683961,139.3578,100.55,100.46,26.57313652]
[1770131683962,173.50567642,100.55,100.46,26.57313652]
[1770131684159,28.11660079,100.55,100.47,139.4633]
[1770131684366,28.11660079,100.55,100.46,166.05013652]
[1770131684861,8.9595,100.54,100.46,26.57313652]
[1770131685266,28.11660079,100.55,100.46,26.57313652]
[1770131685764,28.11660079,100.54,100.46,26.57313652]
[1770131687167,37.07620079,100.54,100.46,26.57313652]
[1770131687369,28.11660079,100.53,100.46,26.57313652]
[1770131688261,37.07680079,100.53,100.46,35.53943652]
[1770131688862,8.9611,100.52,100.46,26.57313652]
[1770131689964,8.9611,100.52,100.45,367.0672]
[1770131689965,34.14787642,100.51,100.43,26.57313652]
[1770131690763,28.11660079,100.51,100.43,26.57313652]
[1770131690966,37.07940079,100.51,100.44,8.9681]
[1770131691762,37.07940079,100.51,100.44,33.9944756]
[1770131691962,8.9628,100.51,100.45,33.9935756]
[1770131692362,8.961,100.52,100.45,25.0263756]
[1770131692560,8.961,100.52,100.46,8.9663]
[1770131693170,35.38306118,100.53,100.47,8.9654]
[1770131693364,26.42286118,100.53,100.45,25.0263756]
[1770131693870,26.42286118,100.54,100.47,8.9651]
[1770131694070,165.78926118,100.54,100.46,27.04912685]
[1770131695262,26.42286118,100.53,100.46,27.04912685]
[1770131695466,8.961,100.52,100.46,36.01542685]
[1770131695969,26.42286118,100.53,100.46,36.01542685]
[1770131696171,35.38296118,100.53,100.46,36.01542685]
[1770131696972,35.38296118,100.53,100.47,8.9654]
[1770131697174,8.961,100.52,100.46,27.04912685]
[1770131697373,26.42286118,100.53,100.46,27.04912685]
[1770131697574,26.42286118,100.53,100.46,36.01522685]
[1770131697773,8.9611,100.52,100.46,36.01522685]
[1770131698474,35.38306118,100.53,100.47,8.9654]
[1770131699974,35.38306118,100.53,100.48,8.9645]
[1770131700170,26.42286118,100.56,100.48,166.49582685]
[1770131700474,26.42286118,100.56,100.47,166.51122685]
[1770131700672,35.38206118,100.54,100.47,27.04912685]
[1770131700871,26.42286118,100.56,100.48,166.49812685]
[1770131701068,26.42286118,100.56,100.48,27.04912685]
[1770131701374,8.9584,100.55,100.49,8.9629]
[1770131702379,26.42286118,100.56,100.49,27.04912685]
[1770131702866,26.42286118,100.56,100.51,8.9618]
[1770131703271,26.42286118,100.56,100.49,27.04912685]
[1770131703467,26.42286118,100.55,100.47,424.06912685]
[1770131703865,35.38196118,100.55,100.5,8.9627]
[1770131704272,32.46072526,100.58,100.49,166.48202685]
[1770131704470,26.42286118,100.58,100.52,8.9609]
[1770131704669,26.42286118,100.58,100.5,27.04912685]
[1770131704974,8.9567,100.57,100.5,27.04912685]
[1770131706375,8.9575,100.56,100.5,27.04912685]
[1770131706576,26.42286118,100.57,100.5,27.04912685]
[1770131706971,35.38016118,100.57,100.51,27.04912685]
[1770131708176,26.42286118,100.63,100.55,27.04912685]
[1770131709179,26.42286118,100.62,100.55,27.04912685]
[1770131709573,8.953,100.61,100.55,36.00732685]
[1770131709775,26.42286118,100.61,100.53,423.98912685]
[1770131710780,8.954,100.6,100.54,8.9591]
[1770131711281,8.9558,100.58,100.51,27.04912685]
[1770131711481,26.42286118,100.59,100.51,166.45682685]
[1770131711780,26.42286118,100.59,100.51,27.04912685]
[1770131711981,165.72136118,100.59,100.51,27.04912685]
[1770131712175,26.42286118,100.57,100.51,27.04912685]
[1770131712374,26.42286118,100.57,100.49,139.4337]
[1770131712585,35.37946118,100.57,100.51,8.961]
[1770131712776,26.42286118,100.59,100.52,27.04912685]
[1770131713383,8.9557,100.58,100.52,36.01012685]
[1770131713682,35.37856118,100.58,100.52,36.01012685]
[1770131714281,26.42286118,100.57,100.49,27.04912685]
[1770131714783,26.42286118,100.55,100.48,8.9637]
[1770131715080,26.42286118,100.55,100.47,27.04912685]
[1770131715674,8.9601,100.53,100.47,27.04912685]
[1770131716182,8.9594,100.54,100.47,27.04912685]
[1770131716383,26.42286118,100.53,100.46,405.8456]
[1770131716881,26.42286118,100.53,100.46,432.89472685]
[1770131717974,8.9611,100.52,100.46,423.92912685]
[1770131719386,26.42286118,100.53,100.47,8.9654]
[1770131719387,35.38296118,100.53,100.47,8.9654]
[1770131720378,8.9612,100.52,100.46,423.92912685]
[1770131721482,35.38306118,100.53,100.46,423.92912685]
[1770131721682,193.15706931,100.55,100.47,26.05047963]
[1770131721889,575.1347,100.59,100.5,26.05047963]
[1770131721890,25.35706931,100.58,100.5,26.05047963]
[1770131722389,25.35706931,100.51,100.44,26.05047963]
[1770131722589,25.35706931,100.5,100.42,26.05047963]
[1770131723088,25.35706931,100.5,100.44,26.05047963]
[1770131723489,164.78276931,100.5,100.41,47.23265342]
[1770131723692,139.3942,100.52,100.41,2.77948636]
[1770131723693,164.83966931,100.46,100.41,2.77948636]
[1770131723890,25.35706931,100.44,100.35,184.07966706]
[1770131724087,164.86716931,100.44,100.35,26.05047963]
[1770131724281,25.35706931,100.43,100.35,26.05047963]
[1770131724889,25.35706931,100.43,100.36,8.975]
[1770131725086,164.89106931,100.42,100.35,26.05047963]
[1770131725390,25.35706931,100.41,100.33,26.05047963]
[1770131725787,25.35706931,100.41,100.33,165.70667963]
[1770131726181,25.35706931,100.4,100.31,165.73507963]
[1770131726392,31.39493339,100.43,100.34,26.05047963]
[1770131726588,199.41493339,100.43,100.34,26.05047963]
[1770131726891,31.39493339,100.41,100.32,26.05047963]
[1770131727097,25.35706931,100.4,100.32,26.05047963]
[1770131727386,25.35706931,100.4,100.33,26.05047963]
[1770131727992,8.9707,100.42,100.34,26.05047963]
[1770131728294,25.35706931,100.43,100.35,26.05047963]
[1770131728697,25.35706931,100.43,100.36,8.9749]
[1770131728891,202.34486931,100.45,100.37,26.05047963]
[1770131729196,25.35706931,100.45,100.37,165.64777963]
[1770131729694,31.39493339,100.48,100.4,26.05047963]
[1770131729996,170.80863339,100.51,100.42,26.05047963]
[1770131730199,34.32056931,100.5,100.42,35.02007963]
[1770131730397,25.35706931,100.48,100.39,165.62457963]
[1770131730600,31.39493339,100.47,100.39,26.05047963]
[1770131730796,31.39493339,100.43,100.36,35.02557963]
[1770131731100,31.39493339,100.43,100.36,165.66647963]
[1770131731298,6.03786408,100.45,100.37,165.65177963]
[1770131731501,25.35706931,100.46,100.38,8.9733]
[1770131731699,25.35706931,100.46,100.39,26.05047963]
[1770131732594,34.32356931,100.46,100.38,406.1933]
[1770131732999,25.35706931,100.44,100.36,35.02517963]
[1770131733194,25.35706931,100.44,100.36,165.66587963]
[1770131733501,25.35706931,100.44,100.37,26.05047963]
[1770131733702,25.35706931,100.44,100.37,35.02467963]
[1770131734112,8.9676,100.45,100.38,8.9734]
[1770131734399,31.39493339,100.47,100.38,26.05047963]
[1770131734604,25.35706931,100.47,100.39,26.05047963]
[1770131735001,8.9662,100.47,100.4,35.02197963]
[1770131735800,8.9667,100.46,100.4,26.05047963]
[1770131736001,25.35706931,100.46,100.38,423.29047963]
[1770131736195,8.9674,100.45,100.38,423.29047963]
[1770131736396,164.84846931,100.45,100.38,397.24]
[1770131736599,164.84846931,100.45,100.35,165.66807963]
[1770131736600,31.39493339,100.43,100.35,26.05047963]
[1770131736804,170.91433339,100.43,100.35,26.05047963]
[1770131737004,8.9701,100.42,100.35,35.02657963]
[1770131737407,164.89826931,100.42,100.35,26.05047963]
[1770131737608,6.03786408,100.41,100.35,26.05047963]
[1770131737901,6.03786408,100.41,100.32,562.98237963]
[1770131738110,8.9718,100.4,100.32,423.31047963]
[1770131738308,8.9718,100.4,100.32,423.33047963]
[1770131739006,8.9718,100.4,100.33,8.9778]
[1770131739402,8.9728,100.39,100.32,423.33047963]
[1770131739708,8.9728,100.39,100.32,432.30927963]
[1770131739908,34.32876931,100.41,100.34,26.05047963]
[1770131740203,34.32876931,100.41,100.34,35.02717963]
[1770131740407,8.9717,100.41,100.34,35.02717963]
[1770131741604,25.35706931,100.42,100.35,8.9761]
[1770131741800,25.35706931,100.42,100.35,35.02657963]